[Event "*** Titled Tuesday Blitz AM"]
[Site "Chess.com"]
[Date "2020.01.07"]
[Round "2"]
[White "MartinMatthiesen"]
[Black "Korchmar_Vasiliy"]
[Result "0-1"]
[WhiteElo "2497"]
[BlackElo "2760"]
[TimeControl "180+2"]
[EndTime "9:22:10 PST"]
[Termination "Korchmar_Vasiliy won by resignation"]

1. d4 {[%clk 0:03:01.9]} 1... Nf6 {[%clk 0:03:00.7]} 2. c4 {[%clk 0:03:02.4]}
2... c6 {[%clk 0:03:01.7]} 3. Nf3 {[%clk 0:03:01.6]} 3... d5 {[%clk 0:03:03]} 4.
Nc3 {[%clk 0:03:02.6]} 4... a6 {[%clk 0:03:03.4]} 5. e3 {[%clk 0:02:57.9]} 5...
e6 {[%clk 0:03:04.1]} 6. b3 {[%clk 0:02:56.2]} 6... Bb4 {[%clk 0:03:03.8]} 7.
Bd2 {[%clk 0:02:56.9]} 7... O-O {[%clk 0:03:04.1]} 8. Bd3 {[%clk 0:02:57]} 8...
Nbd7 {[%clk 0:03:03.7]} 9. O-O {[%clk 0:02:56.3]} 9... Qe7 {[%clk 0:03:02.7]}
10. Qc2 {[%clk 0:02:12.4]} 10... e5 {[%clk 0:02:56.3]} 11. dxe5 {[%clk
0:01:50.8]} 11... Nxe5 {[%clk 0:02:57.1]} 12. Nxe5 {[%clk 0:01:49.5]} 12... Qxe5
{[%clk 0:02:59]} 13. Nxd5 {[%clk 0:01:30.9]} 13... Nxd5 {[%clk 0:02:56.9]} 14.
cxd5 {[%clk 0:01:28.5]} 14... Bxd2 {[%clk 0:02:58.1]} 15. Qxd2 {[%clk
0:01:25.4]} 15... Qxd5 {[%clk 0:02:59.6]} 16. Rfd1 {[%clk 0:01:18.8]} 16... Bg4
{[%clk 0:02:56.1]} 17. f3 {[%clk 0:01:18.9]} 17... Bh5 {[%clk 0:02:53.8]} 18.
Qc2 {[%clk 0:01:15.6]} 18... Qe5 {[%clk 0:02:44.3]} 19. Bxh7+ {[%clk 0:01:14.4]}
19... Kh8 {[%clk 0:02:45.6]} 20. Qe4 {[%clk 0:01:05.8]} 20... Qf6 {[%clk
0:02:32.8]} 21. Bf5 {[%clk 0:01:05.3]} 21... Rad8 {[%clk 0:02:21.9]} 22. Rd4
{[%clk 0:01:01.2]} 22... Rde8 {[%clk 0:02:15.4]} 23. Qf4 {[%clk 0:01:00.6]}
23... g5 {[%clk 0:02:14.6]} 24. Qd6 {[%clk 0:00:48.3]} 24... Qxf5 {[%clk
0:02:16.1]} 25. Qh6+ {[%clk 0:00:48.6]} 25... Qh7 {[%clk 0:02:17.6]} 26. Qxg5
{[%clk 0:00:47.8]} 26... Rg8 {[%clk 0:02:13]} 27. Qf6+ {[%clk 0:00:19.5]} 27...
Qg7 {[%clk 0:02:13.8]} 28. Qxg7+ {[%clk 0:00:20.5]} 28... Kxg7 {[%clk
0:02:15.7]} 29. Kf2 {[%clk 0:00:20.7]} 29... Re7 {[%clk 0:02:11.7]} 30. Rad1
{[%clk 0:00:21]} 30... Rge8 {[%clk 0:02:12.7]} 31. e4 {[%clk 0:00:21.8]} 31...
f6 {[%clk 0:01:51.9]} 32. g4 {[%clk 0:00:22.7]} 32... Bf7 {[%clk 0:01:52.7]} 33.
Kg3 {[%clk 0:00:24.6]} 33... Rc8 {[%clk 0:01:44.1]} 34. h4 {[%clk 0:00:24.5]}
34... c5 {[%clk 0:01:45.5]} 35. Rd6 {[%clk 0:00:25.4]} 35... c4 {[%clk
0:01:43.3]} 36. bxc4 {[%clk 0:00:26.3]} 36... Rxc4 {[%clk 0:01:45.2]} 37. R1d2
{[%clk 0:00:24.7]} 37... Rc3 {[%clk 0:01:46]} 38. Kf4 {[%clk 0:00:25.1]} 38...
Ra3 {[%clk 0:01:39.8]} 39. g5 {[%clk 0:00:23.6]} 39... fxg5+ {[%clk 0:01:39.9]}
40. hxg5 {[%clk 0:00:25.5]} 40... Bxa2 {[%clk 0:01:35]} 41. Rh2 {[%clk
0:00:20.6]} 41... Rf7+ {[%clk 0:01:33.6]} 42. Kg3 {[%clk 0:00:20.8]} 42...
Raxf3+ {[%clk 0:01:33.1]} 0-1

[Event "*** Titled Tuesday Blitz AM"]
[Site "Chess.com"]
[Date "2020.01.07"]
[Round "2"]
[White "ural58"]
[Black "Borsuk_Konstantin"]
[Result "0-1"]
[WhiteElo "2313"]
[BlackElo "2536"]
[TimeControl "180+2"]
[EndTime "9:22:13 PST"]
[Termination "Borsuk_Konstantin won by resignation"]

1. Nc3 {[%clk 0:02:33.1]} 1... d5 {[%clk 0:02:55.7]} 2. d4 {[%clk 0:02:32.5]}
2... Bf5 {[%clk 0:02:53.2]} 3. Bf4 {[%clk 0:02:31.3]} 3... e6 {[%clk 0:02:53.2]}
4. f3 {[%clk 0:02:32]} 4... Bb4 {[%clk 0:02:53.6]} 5. Qd2 {[%clk 0:02:32.2]}
5... Nd7 {[%clk 0:02:51.5]} 6. a3 {[%clk 0:02:32.8]} 6... Bxc3 {[%clk
0:02:50.3]} 7. Qxc3 {[%clk 0:02:33.6]} 7... Rc8 {[%clk 0:02:46.3]} 8. e3 {[%clk
0:02:28.7]} 8... c5 {[%clk 0:02:36.3]} 9. dxc5 {[%clk 0:02:28.9]} 9... Ngf6
{[%clk 0:02:30.6]} 10. b4 {[%clk 0:02:28]} 10... O-O {[%clk 0:02:26.7]} 11. Bd6
{[%clk 0:02:27.4]} 11... Re8 {[%clk 0:02:25.4]} 12. g4 {[%clk 0:02:28.3]} 12...
Nxg4 {[%clk 0:02:15.4]} 13. fxg4 {[%clk 0:02:28.3]} 13... Be4 {[%clk 0:02:16.4]}
14. O-O-O {[%clk 0:01:49.8]} 14... Bxh1 {[%clk 0:02:14.7]} 15. Bd3 {[%clk
0:01:50.1]} 15... Nxc5 {[%clk 0:01:29.6]} 16. Bxc5 {[%clk 0:01:28.9]} 16... b6
{[%clk 0:01:30.4]} 17. Ne2 {[%clk 0:01:28.4]} 17... Bf3 {[%clk 0:01:29.5]} 18.
Bxb6 {[%clk 0:01:06.9]} 18... Rxc3 {[%clk 0:01:15]} 19. Bxd8 {[%clk 0:01:07.2]}
19... Bxe2 {[%clk 0:01:15.9]} 20. Bxe2 {[%clk 0:01:06]} 20... Rxd8 {[%clk
0:01:11.8]} 21. Rd3 {[%clk 0:01:02]} 21... Rdc8 {[%clk 0:01:06.4]} 22. Rxc3
{[%clk 0:00:45.8]} 22... Rxc3 {[%clk 0:01:07.4]} 23. a4 {[%clk 0:00:47.7]} 23...
Kf8 {[%clk 0:00:57.5]} 24. Kd2 {[%clk 0:00:47.3]} 24... Ra3 {[%clk 0:00:57.9]}
25. Bb5 {[%clk 0:00:47.6]} 25... Ke7 {[%clk 0:00:55.8]} 26. e4 {[%clk
0:00:46.8]} 26... Kd6 {[%clk 0:00:51.4]} 27. exd5 {[%clk 0:00:47]} 27... exd5
{[%clk 0:00:52.4]} 28. a5 {[%clk 0:00:46.5]} 28... Rh3 {[%clk 0:00:50.2]} 29. c4
{[%clk 0:00:44.5]} 29... Rxh2+ {[%clk 0:00:49.5]} 30. Kc3 {[%clk 0:00:45.7]}
30... dxc4 {[%clk 0:00:48.2]} 31. Bxc4 {[%clk 0:00:46.5]} 31... Rh3+ {[%clk
0:00:42]} 32. Kd4 {[%clk 0:00:45.8]} 32... Rh4 {[%clk 0:00:43]} 33. Be2 {[%clk
0:00:46.4]} 33... f5 {[%clk 0:00:40.4]} 34. b5 {[%clk 0:00:47.6]} 34... fxg4
{[%clk 0:00:41.1]} 35. b6 {[%clk 0:00:49.5]} 35... g3+ {[%clk 0:00:39.9]} 36.
Ke3 {[%clk 0:00:48.1]} 36... axb6 {[%clk 0:00:38.4]} 37. a6 {[%clk 0:00:49.1]}
37... Ra4 {[%clk 0:00:38.7]} 38. Kf3 {[%clk 0:00:49.5]} 38... Ra3+ {[%clk
0:00:39.7]} 0-1

[Event "*** Titled Tuesday Blitz AM"]
[Site "Chess.com"]
[Date "2020.01.07"]
[Round "2"]
[White "MixMasterChess"]
[Black "Oleksandr_Bortnyk"]
[Result "0-1"]
[WhiteElo "2130"]
[BlackElo "3004"]
[TimeControl "180+2"]
[EndTime "9:22:14 PST"]
[Termination "Oleksandr_Bortnyk won by resignation"]

1. Nf3 {[%clk 0:03:01.9]} 1... Nf6 {[%clk 0:02:59.2]} 2. c4 {[%clk 0:03:02.5]}
2... b6 {[%clk 0:03:00.1]} 3. Nc3 {[%clk 0:03:02.8]} 3... Bb7 {[%clk 0:03:02]}
4. g3 {[%clk 0:03:00.4]} 4... g6 {[%clk 0:03:02.4]} 5. Bg2 {[%clk 0:03:01.3]}
5... Bg7 {[%clk 0:03:04.3]} 6. O-O {[%clk 0:03:01.4]} 6... O-O {[%clk
0:02:59.4]} 7. Re1 {[%clk 0:03:01.2]} 7... Ne4 {[%clk 0:02:59.8]} 8. Nxe4 {[%clk
0:02:59.5]} 8... Bxe4 {[%clk 0:03:00.4]} 9. d3 {[%clk 0:03:00.7]} 9... Bb7
{[%clk 0:03:00.6]} 10. Qc2 {[%clk 0:02:48.5]} 10... c5 {[%clk 0:02:58]} 11. Bg5
{[%clk 0:02:41.5]} 11... Nc6 {[%clk 0:02:56.9]} 12. Qd2 {[%clk 0:02:41.8]} 12...
Re8 {[%clk 0:02:57.4]} 13. Bh6 {[%clk 0:02:41.4]} 13... Bh8 {[%clk 0:02:57.5]}
14. Rab1 {[%clk 0:02:37.5]} 14... d5 {[%clk 0:02:57.6]} 15. Red1 {[%clk
0:02:12.9]} 15... e6 {[%clk 0:02:31.4]} 16. h4 {[%clk 0:01:55.4]} 16... dxc4
{[%clk 0:02:25]} 17. dxc4 {[%clk 0:01:54.6]} 17... Qxd2 {[%clk 0:02:24.3]} 18.
Rxd2 {[%clk 0:01:52.7]} 18... Rad8 {[%clk 0:02:22.1]} 19. b3 {[%clk 0:01:34.9]}
19... Rxd2 {[%clk 0:01:39.5]} 20. Nxd2 {[%clk 0:01:35.2]} 20... Rd8 {[%clk
0:01:41.4]} 21. Ne4 {[%clk 0:01:16.3]} 21... Rd7 {[%clk 0:01:22.5]} 22. e3
{[%clk 0:01:09]} 22... Bg7 {[%clk 0:01:20.4]} 23. Bxg7 {[%clk 0:01:00.2]} 23...
Kxg7 {[%clk 0:01:22.3]} 24. Kf1 {[%clk 0:00:46.8]} 24... Nb4 {[%clk 0:01:23.3]}
25. a3 {[%clk 0:00:26.7]} 25... Nc2 {[%clk 0:01:24.6]} 26. a4 {[%clk 0:00:20.9]}
26... a5 {[%clk 0:01:18.3]} 27. h5 {[%clk 0:00:16.8]} 27... gxh5 {[%clk
0:01:19]} 28. Nc3 {[%clk 0:00:15.3]} 28... Bxg2+ {[%clk 0:01:18.4]} 29. Kxg2
{[%clk 0:00:17.2]} 29... Rd3 {[%clk 0:01:15.7]} 30. Nb5 {[%clk 0:00:16.2]} 30...
Rd2 {[%clk 0:01:16.7]} 31. Kf3 {[%clk 0:00:16.8]} 31... f5 {[%clk 0:01:18.1]}
32. Rh1 {[%clk 0:00:15]} 32... Kg6 {[%clk 0:01:18.3]} 33. Nc7 {[%clk 0:00:14]}
33... e5 {[%clk 0:01:19.4]} 34. Ne6 {[%clk 0:00:14.5]} 34... e4+ {[%clk
0:01:20]} 35. Kf4 {[%clk 0:00:15.4]} 35... Rxf2+ {[%clk 0:01:21]} 36. Ke5 {[%clk
0:00:16.6]} 36... Nxe3 {[%clk 0:01:22.6]} 37. Nf4+ {[%clk 0:00:14.8]} 37... Kg5
{[%clk 0:01:23.7]} 38. Rxh5+ {[%clk 0:00:15.2]} 38... Kg4 {[%clk 0:01:25.1]} 39.
Rh4+ {[%clk 0:00:14.9]} 39... Kxg3 {[%clk 0:01:26.3]} 40. Rxh7 {[%clk
0:00:14.9]} 40... Rxf4 {[%clk 0:01:27.3]} 41. Rg7+ {[%clk 0:00:15.2]} 41... Ng4+
{[%clk 0:01:28.6]} 0-1

[Event "*** Titled Tuesday Blitz AM"]
[Site "Chess.com"]
[Date "2020.01.07"]
[Round "2"]
[White "esskeettit"]
[Black "AleksanderHnydiuk"]
[Result "0-1"]
[WhiteElo "2445"]
[BlackElo "2254"]
[TimeControl "180+2"]
[EndTime "9:22:14 PST"]
[Termination "AleksanderHnydiuk won by resignation"]

1. d4 {[%clk 0:03:01.9]} 1... Nf6 {[%clk 0:03:00.2]} 2. c4 {[%clk 0:03:01.2]}
2... g6 {[%clk 0:03:01]} 3. Nf3 {[%clk 0:02:56.3]} 3... Bg7 {[%clk 0:03:01.5]}
4. e3 {[%clk 0:02:51.6]} 4... O-O {[%clk 0:03:01.7]} 5. Be2 {[%clk 0:02:52.3]}
5... c5 {[%clk 0:03:00.9]} 6. O-O {[%clk 0:02:51.8]} 6... cxd4 {[%clk
0:03:01.2]} 7. exd4 {[%clk 0:02:51.3]} 7... d5 {[%clk 0:03:02.4]} 8. c5 {[%clk
0:02:39.5]} 8... Nc6 {[%clk 0:03:03]} 9. Nc3 {[%clk 0:02:39.3]} 9... Ne4 {[%clk
0:03:02.5]} 10. Be3 {[%clk 0:02:33.1]} 10... Bg4 {[%clk 0:02:59.6]} 11. Qc2
{[%clk 0:02:04.6]} 11... Nxc3 {[%clk 0:02:32.1]} 12. bxc3 {[%clk 0:01:40.7]}
12... b6 {[%clk 0:02:31.8]} 13. cxb6 {[%clk 0:01:37.4]} 13... Qxb6 {[%clk
0:02:31.7]} 14. Rab1 {[%clk 0:01:31.4]} 14... Qc7 {[%clk 0:02:24.6]} 15. Rb5
{[%clk 0:01:17]} 15... Rac8 {[%clk 0:02:04.8]} 16. Qb3 {[%clk 0:01:10.7]} 16...
e6 {[%clk 0:01:55.8]} 17. Rc1 {[%clk 0:00:47.2]} 17... Na5 {[%clk 0:01:41.3]}
18. Qa4 {[%clk 0:00:45.7]} 18... Bxf3 {[%clk 0:01:25.8]} 19. Bxf3 {[%clk
0:00:41.4]} 19... Nc4 {[%clk 0:01:26]} 20. Bg5 {[%clk 0:00:32.2]} 20... h6
{[%clk 0:01:08.8]} 21. Bh4 {[%clk 0:00:32.4]} 21... Qf4 {[%clk 0:01:04.5]} 22.
Rcb1 {[%clk 0:00:18.6]} 22... Qxh4 {[%clk 0:01:04.7]} 23. Be2 {[%clk 0:00:19.7]}
23... Rc7 {[%clk 0:00:59.1]} 24. g3 {[%clk 0:00:10.7]} 24... Qe7 {[%clk
0:00:57.5]} 25. Qa6 {[%clk 0:00:08.8]} 25... Kh7 {[%clk 0:00:52.5]} 26. Bd3
{[%clk 0:00:08.4]} 26... Rfc8 {[%clk 0:00:51.8]} 27. Re1 {[%clk 0:00:08.8]}
27... Qa3 {[%clk 0:00:49.5]} 28. Qxa3 {[%clk 0:00:06.6]} 28... Nxa3 {[%clk
0:00:50.5]} 29. Ra5 {[%clk 0:00:07.7]} 29... Rxc3 {[%clk 0:00:49.2]} 30. Ba6
{[%clk 0:00:08.7]} 30... R8c7 {[%clk 0:00:48.8]} 31. Bf1 {[%clk 0:00:08.5]}
31... Nc2 {[%clk 0:00:48.5]} 0-1

[Event "*** Titled Tuesday Blitz AM"]
[Site "Chess.com"]
[Date "2020.01.07"]
[Round "2"]
[White "przemekpiotrowski"]
[Black "albano87"]
[Result "0-1"]
[WhiteElo "2400"]
[BlackElo "2060"]
[TimeControl "180+2"]
[EndTime "9:22:14 PST"]
[Termination "albano87 won by checkmate"]

1. d4 {[%clk 0:03:01.9]} 1... Nf6 {[%clk 0:03:00]} 2. Nf3 {[%clk 0:03:03.5]}
2... e6 {[%clk 0:03:01.2]} 3. g3 {[%clk 0:03:05.1]} 3... c5 {[%clk 0:03:02.1]}
4. Bg2 {[%clk 0:03:06.4]} 4... Nc6 {[%clk 0:03:01.6]} 5. O-O {[%clk 0:03:07.6]}
5... cxd4 {[%clk 0:03:02.9]} 6. Nxd4 {[%clk 0:03:09.1]} 6... d5 {[%clk
0:03:03.9]} 7. c4 {[%clk 0:03:10.3]} 7... Bc5 {[%clk 0:03:04.1]} 8. Nb3 {[%clk
0:03:07.7]} 8... Be7 {[%clk 0:03:04.4]} 9. Nc3 {[%clk 0:02:57.7]} 9... dxc4
{[%clk 0:03:04.8]} 10. Nd2 {[%clk 0:02:58.7]} 10... Nd5 {[%clk 0:02:49.2]} 11.
Qc2 {[%clk 0:02:28.6]} 11... Bf6 {[%clk 0:02:34.2]} 12. Nxd5 {[%clk 0:01:51.5]}
12... exd5 {[%clk 0:02:33.8]} 13. e4 {[%clk 0:01:53.2]} 13... Nd4 {[%clk
0:02:19.1]} 14. Qd1 {[%clk 0:01:50.3]} 14... dxe4 {[%clk 0:02:13.9]} 15. Nxe4
{[%clk 0:01:43.8]} 15... O-O {[%clk 0:02:13.8]} 16. Be3 {[%clk 0:01:42.7]} 16...
Nf5 {[%clk 0:02:07.7]} 17. Bc5 {[%clk 0:01:43.6]} 17... Re8 {[%clk 0:01:57.2]}
18. Re1 {[%clk 0:01:44.7]} 18... Bxb2 {[%clk 0:01:50.6]} 19. Qh5 {[%clk
0:00:58.1]} 19... Bxa1 {[%clk 0:01:45.6]} 20. Rxa1 {[%clk 0:01:00]} 20... h6
{[%clk 0:01:31.7]} 21. Rd1 {[%clk 0:00:52.5]} 21... Qc7 {[%clk 0:01:25.7]} 22.
g4 {[%clk 0:00:51.3]} 22... Bd7 {[%clk 0:00:31.1]} 23. gxf5 {[%clk 0:00:46.7]}
23... Bc6 {[%clk 0:00:31.9]} 24. Nd6 {[%clk 0:00:36.7]} 24... Bxg2 {[%clk
0:00:30.6]} 25. Kxg2 {[%clk 0:00:33.2]} 25... Qxc5 {[%clk 0:00:22.7]} 26. Qxf7+
{[%clk 0:00:33.8]} 26... Kh8 {[%clk 0:00:24]} 27. Nxe8 {[%clk 0:00:29.1]} 27...
Qc6+ {[%clk 0:00:24.8]} 28. Kg1 {[%clk 0:00:28.2]} 28... Rxe8 {[%clk 0:00:23.1]}
29. Rd7 {[%clk 0:00:29.4]} 29... Re1# {[%clk 0:00:23.5]} 0-1

[Event "*** Titled Tuesday Blitz AM"]
[Site "Chess.com"]
[Date "2020.01.07"]
[Round "2"]
[White "M1711"]
[Black "Nathan_Filgueiras"]
[Result "1-0"]
[WhiteElo "2531"]
[BlackElo "2316"]
[TimeControl "180+2"]
[EndTime "9:22:17 PST"]
[Termination "M1711 won by resignation"]

1. d4 {[%clk 0:03:01.9]} 1... Nf6 {[%clk 0:03:00.3]} 2. Bg5 {[%clk 0:03:01.3]}
2... e6 {[%clk 0:02:59.8]} 3. e4 {[%clk 0:03:02.1]} 3... h6 {[%clk 0:03:01.1]}
4. Bxf6 {[%clk 0:03:03.5]} 4... Qxf6 {[%clk 0:03:03]} 5. c3 {[%clk 0:03:04.9]}
5... g6 {[%clk 0:03:03.9]} 6. Bd3 {[%clk 0:03:04.9]} 6... Bg7 {[%clk 0:03:05.1]}
7. Ne2 {[%clk 0:03:06.5]} 7... O-O {[%clk 0:03:05.8]} 8. O-O {[%clk 0:03:08.1]}
8... Qe7 {[%clk 0:03:06.9]} 9. f4 {[%clk 0:03:09.2]} 9... d6 {[%clk 0:03:08.3]}
10. Nd2 {[%clk 0:03:05.9]} 10... b6 {[%clk 0:03:09.6]} 11. e5 {[%clk 0:03:06.6]}
11... Bb7 {[%clk 0:03:10.8]} 12. Ne4 {[%clk 0:03:06.6]} 12... Nd7 {[%clk
0:03:05.7]} 13. N2g3 {[%clk 0:03:03]} 13... Bxe4 {[%clk 0:02:46.6]} 14. Bxe4
{[%clk 0:03:01.2]} 14... d5 {[%clk 0:02:47.8]} 15. Bd3 {[%clk 0:03:01.8]} 15...
c5 {[%clk 0:02:49.4]} 16. Qf3 {[%clk 0:02:42.4]} 16... cxd4 {[%clk 0:02:49.6]}
17. cxd4 {[%clk 0:02:43.5]} 17... Qb4 {[%clk 0:02:50.6]} 18. Qf2 {[%clk
0:02:39.1]} 18... Rac8 {[%clk 0:02:48]} 19. f5 {[%clk 0:02:07.4]} 19... exf5
{[%clk 0:02:22.1]} 20. Nxf5 {[%clk 0:02:09.3]} 20... gxf5 {[%clk 0:00:44.2]} 21.
Qxf5 {[%clk 0:02:11.2]} 21... Qxd4+ {[%clk 0:00:41.1]} 22. Kh1 {[%clk
0:02:09.3]} 22... f6 {[%clk 0:00:26.4]} 23. e6 {[%clk 0:01:42.1]} 23... Rfd8
{[%clk 0:00:15]} 24. exd7 {[%clk 0:01:31.6]} 24... Rc7 {[%clk 0:00:15.4]} 25.
Qe6+ {[%clk 0:01:32.8]} 25... Kf8 {[%clk 0:00:14.9]} 26. Bg6 {[%clk 0:01:34.2]}
26... Rcxd7 {[%clk 0:00:15.8]} 27. Rae1 {[%clk 0:01:35.7]} 27... Bh8 {[%clk
0:00:11.7]} 28. Rf3 {[%clk 0:01:10.5]} 28... Qc5 {[%clk 0:00:12.6]} 29. Ref1
{[%clk 0:01:05]} 29... Re7 {[%clk 0:00:13]} 30. Rxf6+ {[%clk 0:00:51.4]} 30...
Bxf6 {[%clk 0:00:13.4]} 31. Rxf6+ {[%clk 0:00:52.6]} 31... Kg7 {[%clk
0:00:13.5]} 32. Rf7+ {[%clk 0:00:54.1]} 32... Kh8 {[%clk 0:00:05.8]} 33. Qf6+
{[%clk 0:00:54.1]} 1-0

[Event "*** Titled Tuesday Blitz AM"]
[Site "Chess.com"]
[Date "2020.01.07"]
[Round "2"]
[White "Sashadav97"]
[Black "Sethu0025"]
[Result "0-1"]
[WhiteElo "2544"]
[BlackElo "2808"]
[TimeControl "180+2"]
[EndTime "9:22:22 PST"]
[Termination "Sethu0025 won by resignation"]

1. d4 {[%clk 0:03:01.9]} 1... d6 {[%clk 0:03:00]} 2. e4 {[%clk 0:02:58.8]} 2...
g6 {[%clk 0:03:00.8]} 3. Nf3 {[%clk 0:02:57.7]} 3... Bg7 {[%clk 0:03:01.9]} 4.
Be3 {[%clk 0:02:58.7]} 4... a6 {[%clk 0:02:58.6]} 5. Qd2 {[%clk 0:02:52.5]} 5...
Nf6 {[%clk 0:02:53.5]} 6. Nc3 {[%clk 0:02:52.6]} 6... b5 {[%clk 0:02:53]} 7. Bh6
{[%clk 0:02:48.9]} 7... O-O {[%clk 0:02:52.5]} 8. Bxg7 {[%clk 0:02:38.4]} 8...
Kxg7 {[%clk 0:02:53]} 9. O-O-O {[%clk 0:02:14.5]} 9... b4 {[%clk 0:02:39.5]} 10.
Nd5 {[%clk 0:02:12.2]} 10... Nxe4 {[%clk 0:02:34.6]} 11. Qe3 {[%clk 0:02:12.5]}
11... Nf6 {[%clk 0:02:29.7]} 12. Nxf6 {[%clk 0:02:07.6]} 12... exf6 {[%clk
0:02:30.6]} 13. h4 {[%clk 0:02:06.8]} 13... h5 {[%clk 0:02:30.8]} 14. Bd3 {[%clk
0:01:58]} 14... Re8 {[%clk 0:02:27.3]} 15. Qf4 {[%clk 0:01:57.4]} 15... Bg4
{[%clk 0:02:22.8]} 16. Rde1 {[%clk 0:01:52.5]} 16... Nc6 {[%clk 0:02:11.3]} 17.
Rxe8 {[%clk 0:01:26.4]} 17... Qxe8 {[%clk 0:02:11.9]} 18. Re1 {[%clk 0:01:27.9]}
18... Qd7 {[%clk 0:02:10.8]} 19. Kd2 {[%clk 0:00:51.4]} 19... d5 {[%clk
0:01:32.8]} 20. Nh2 {[%clk 0:00:50.8]} 20... Be6 {[%clk 0:01:32.9]} 21. f3
{[%clk 0:00:44.9]} 21... Rh8 {[%clk 0:01:14.3]} 22. Bxa6 {[%clk 0:00:33.8]}
22... Ra8 {[%clk 0:01:08.3]} 23. Bd3 {[%clk 0:00:30.1]} 23... Rxa2 {[%clk
0:01:05.4]} 24. g4 {[%clk 0:00:31.5]} 24... Qd6 {[%clk 0:00:45.8]} 25. Qxd6
{[%clk 0:00:25.5]} 25... cxd6 {[%clk 0:00:47.7]} 26. gxh5 {[%clk 0:00:26.7]}
26... gxh5 {[%clk 0:00:48.5]} 27. Rb1 {[%clk 0:00:25]} 27... Nxd4 {[%clk
0:00:48.8]} 28. c3 {[%clk 0:00:20.6]} 28... bxc3+ {[%clk 0:00:40.7]} 29. Kxc3
{[%clk 0:00:22.5]} 29... Nc6 {[%clk 0:00:42]} 30. Nf1 {[%clk 0:00:23.6]} 30...
d4+ {[%clk 0:00:42.8]} 31. Kd2 {[%clk 0:00:24.1]} 31... Ne5 {[%clk 0:00:43.7]}
32. Be2 {[%clk 0:00:22.9]} 32... Bf5 {[%clk 0:00:42.8]} 0-1

[Event "*** Titled Tuesday Blitz AM"]
[Site "Chess.com"]
[Date "2020.01.07"]
[Round "2"]
[White "RaunakSadhwani2005"]
[Black "PIwan"]
[Result "1-0"]
[WhiteElo "2762"]
[BlackElo "2510"]
[TimeControl "180+2"]
[EndTime "9:22:31 PST"]
[Termination "RaunakSadhwani2005 won by resignation"]

1. d4 {[%clk 0:03:01.4]} 1... d5 {[%clk 0:03:00.4]} 2. Nc3 {[%clk 0:03:01.8]}
2... Nf6 {[%clk 0:03:00.8]} 3. Bf4 {[%clk 0:03:03]} 3... e6 {[%clk 0:03:00.8]}
4. e3 {[%clk 0:02:59.9]} 4... Bd6 {[%clk 0:03:01.1]} 5. Nf3 {[%clk 0:02:59.9]}
5... Bxf4 {[%clk 0:02:56.1]} 6. exf4 {[%clk 0:03:01.8]} 6... b6 {[%clk
0:02:57.5]} 7. Bd3 {[%clk 0:03:01.9]} 7... Ba6 {[%clk 0:02:57.4]} 8. O-O {[%clk
0:03:02.5]} 8... O-O {[%clk 0:02:57.8]} 9. Ne2 {[%clk 0:03:03.1]} 9... Bxd3
{[%clk 0:02:52.4]} 10. Qxd3 {[%clk 0:03:03.7]} 10... c5 {[%clk 0:02:49.1]} 11.
Rfd1 {[%clk 0:03:03]} 11... cxd4 {[%clk 0:02:46.6]} 12. Nexd4 {[%clk 0:03:04.9]}
12... Qc7 {[%clk 0:02:44.2]} 13. Qe3 {[%clk 0:03:01.8]} 13... Nbd7 {[%clk
0:02:37.7]} 14. Rac1 {[%clk 0:03:02.9]} 14... Rac8 {[%clk 0:02:34.4]} 15. h3
{[%clk 0:02:56.7]} 15... Rfe8 {[%clk 0:02:10.3]} 16. Ne5 {[%clk 0:02:56.4]}
16... Ne4 {[%clk 0:01:56.2]} 17. f3 {[%clk 0:02:34.3]} 17... Nxe5 {[%clk
0:01:52.6]} 18. fxe5 {[%clk 0:02:34.9]} 18... Nc5 {[%clk 0:01:43.3]} 19. Nb5
{[%clk 0:02:35.7]} 19... Qe7 {[%clk 0:01:13.7]} 20. Nd6 {[%clk 0:02:32.6]} 20...
Qh4 {[%clk 0:01:12.6]} 21. Rd4 {[%clk 0:02:28.3]} 21... Qh5 {[%clk 0:01:07.9]}
22. c4 {[%clk 0:02:21.8]} 22... dxc4 {[%clk 0:00:45.9]} 23. Rcxc4 {[%clk
0:02:20.4]} 23... Rcd8 {[%clk 0:00:34.5]} 24. b4 {[%clk 0:02:00.9]} 24... Na6
{[%clk 0:00:14.7]} 25. Nxe8 {[%clk 0:02:00]} 25... Rxe8 {[%clk 0:00:16.6]} 26.
Rd7 {[%clk 0:01:57.8]} 26... b5 {[%clk 0:00:11.2]} 27. Rf4 {[%clk 0:01:56]}
27... Nb8 {[%clk 0:00:04.7]} 28. Rdxf7 {[%clk 0:01:53.6]} 28... Nc6 {[%clk
0:00:05.8]} 29. Rc7 {[%clk 0:01:45.4]} 29... Nxe5 {[%clk 0:00:05.4]} 30. Re4
{[%clk 0:01:42.3]} 30... Ng6 {[%clk 0:00:03.9]} 31. Rxe6 {[%clk 0:01:40.5]}
31... Rf8 {[%clk 0:00:04.9]} 32. Re8 {[%clk 0:01:35.9]} 32... Qf5 {[%clk
0:00:04.6]} 33. Qe6+ {[%clk 0:01:32.8]} 33... Qxe6 {[%clk 0:00:04.9]} 34. Rxe6
{[%clk 0:01:34.7]} 34... Nf4 {[%clk 0:00:06]} 35. Ree7 {[%clk 0:01:35.2]} 35...
Nh5 {[%clk 0:00:03.4]} 36. Rxa7 {[%clk 0:01:36.2]} 36... Rd8 {[%clk 0:00:03.8]}
37. Re5 {[%clk 0:01:37]} 37... Nf6 {[%clk 0:00:04.5]} 38. Rxb5 {[%clk
0:01:37.4]} 38... h5 {[%clk 0:00:04.3]} 39. Rg5 {[%clk 0:01:37]} 39... Rd1+
{[%clk 0:00:03.4]} 40. Kf2 {[%clk 0:01:37.7]} 40... Nd5 {[%clk 0:00:04.4]} 41.
Raxg7+ {[%clk 0:01:36.1]} 41... Kf8 {[%clk 0:00:05.9]} 42. Rd7 {[%clk
0:01:37.3]} 42... Rd2+ {[%clk 0:00:06.3]} 43. Ke1 {[%clk 0:01:38.8]} 1-0